bitfinex/quotes_SOLUSD_20250417
["timestamp","ask_amount","ask_price","bid_price","bid_amount"]
[1744870836724,0.063,132.96,132.94,11.93620631]
[1744870836909,0.063,132.96,132.95,11.93620631]
[1744870845357,0.063,132.96,132.95,50.04368615]
[1744870845752,0.063,132.96,132.95,65.64368615]
[1744870847367,0.063,132.97,132.95,65.92800929]
[1744870847569,0.063,132.97,132.96,25.45821262]
[1744870848758,0.063,132.97,132.96,58.97927158]
[1744870853067,0.063,132.98,132.96,51.62892044]
[1744870853263,0.063,133.0,132.98,56.87017831]
[1744870853466,0.063,133.02,132.99,42.80638462]
[1744870853648,0.063,133.04,133.01,18.64964886]
[1744870853968,0.063,133.04,133.02,23.87241262]
[1744870855380,0.063,133.04,133.02,11.93620631]
[1744870856269,0.063,133.04,133.02,31.39007913]
[1744870856642,0.063,133.04,133.02,57.39007913]
[1744870857059,0.063,133.04,133.02,49.87241262]
[1744870858072,110.0774004,133.09,133.06,18.64964886]
[1744870858073,0.063,133.09,133.06,18.64964886]
[1744870858278,0.063,133.11,133.09,18.64964886]
[1744870858567,0.063,133.11,133.09,30.58585517]
[1744870858748,0.063,133.11,133.1,30.58585517]
[1744870858946,6.1652,133.17,133.11,44.64964886]
[1744870859254,9.01592169,133.19,133.15,11.93620631]
[1744870859450,20.952128,133.19,133.15,11.93620631]
[1744870860267,9.01592169,133.19,133.15,11.93620631]
[1744870860474,9.01592169,133.19,133.16,11.93620631]
[1744870860854,9.01592169,133.19,133.17,11.93620631]
[1744870861836,20.952128,133.19,133.12,15.58]
[1744870862136,12.22052945,133.18,133.13,11.93620631]
[1744870862740,12.22052945,133.18,133.14,11.93620631]
[1744870862935,0.28432314,133.18,133.15,11.93620631]
[1744870863149,83.08432314,133.18,133.15,11.93620631]
[1744870863349,90.30893396,133.18,133.16,11.93620631]
[1744870863553,82.8,133.22,133.17,11.93620631]
[1744870863748,82.8,133.22,133.18,11.93620631]
[1744870863964,94.73620631,133.22,133.18,11.93620631]
[1744870864341,7.50742293,133.21,133.18,11.93620631]
[1744870864570,7.50742293,133.21,133.19,11.93620631]
[1744870865770,7.50638042,133.22,133.2,11.93620631]
[1744870865991,0.03,133.24,133.21,11.93620631]
[1744870866141,7.53525367,133.24,133.21,11.93620631]
[1744870866648,7.53525367,133.24,133.22,11.93620631]
[1744870866860,0.03,133.24,133.23,11.93620631]
[1744870867058,7.53533155,133.24,133.21,11.93620631]
[1744870867265,19.47153786,133.24,133.19,11.93620631]
[1744870867664,19.47153786,133.24,133.2,11.93620631]
[1744870867874,19.47153786,133.24,133.19,11.93620631]
[1744870868870,38.23467205,133.24,133.19,11.93620631]
[1744870869387,11.93620631,133.22,133.18,11.93620631]
[1744870870385,7.50694392,133.21,133.18,11.93620631]
[1744870870787,7.50694392,133.21,133.19,11.93620631]
[1744870871787,7.50638042,133.22,133.2,11.93620631]
[1744870871984,82.8,133.23,133.21,11.93620631]
[1744870872194,0.03,133.24,133.22,11.93620631]
[1744870874381,0.03,133.24,133.19,7.5079774]
[1744870874687,0.03,133.24,133.23,11.93620631]
[1744870876585,0.03,133.24,133.2,53.65295427]
[1744870876898,0.03,133.24,133.23,11.93620631]
[1744870880397,0.03,133.24,133.18,27.5353]
[1744870880398,11.96620631,133.24,133.18,27.5353]
[1744870880570,11.93620631,133.23,133.19,11.93620631]
[1744870880774,0.03,133.24,133.17,11.93620631]
[1744870880775,11.93620631,133.22,133.17,11.93620631]
[1744870881081,11.93620631,133.19,133.13,1.557]
[1744870881594,11.93620631,133.19,133.15,11.93620631]
[1744870881764,7.50863493,133.18,133.15,11.93620631]
[1744870883794,0.03,133.24,133.18,26.15809857]
[1744870884095,0.03,133.24,133.23,11.93620631]
[1744870884294,11.96620631,133.24,133.18,15.56]
[1744870884503,11.93620631,133.23,133.19,11.93620631]
[1744870885092,11.93620631,133.23,133.18,11.93620631]
[1744870885299,19.04013144,133.23,133.18,19.04013144]
[1744870885493,19.04013144,133.23,133.19,19.04013144]
[1744870886195,7.50637888,133.23,133.19,19.04013144]
[1744870886397,7.50637888,133.23,133.2,19.04013144]
[1744870886905,26.54651032,133.23,133.18,19.04013144]
[1744870887072,19.04013144,133.21,133.17,19.04013144]
[1744870887268,19.04013144,133.2,133.16,19.04013144]
[1744870887501,19.04013144,133.19,133.14,15.56]
[1744870887794,19.04013144,133.19,133.14,19.04013144]
[1744870888175,7.50863493,133.18,133.15,19.04013144]
[1744870888980,7.50863493,133.18,133.14,19.04013144]
[1744870889181,19.04013144,133.17,133.13,19.04013144]
[1744870890480,7.50933439,133.17,133.14,19.04013144]
[1744870891396,19.04013144,133.15,133.1,49.07303329]
[1744870891602,19.04013144,133.15,133.11,19.04013144]
[1744870891906,19.04013144,133.16,133.12,19.04013144]
[1744870892303,19.04013144,133.14,133.08,6.0238]
[1744870892514,19.04013144,133.11,133.05,0.063]
[1744870892733,19.04013144,133.1,133.06,19.04013144]
[1744870893048,19.04013144,133.09,133.05,19.10313144]
[1744870893606,19.04013144,133.09,133.05,0.063]
[1744870894011,82.8,133.11,133.05,0.063]
[1744870894012,19.04013144,133.07,133.05,0.063]
[1744870894506,26.55553802,133.06,133.05,0.063]
[1744870896507,7.51540658,133.06,133.02,18.60313144]
[1744870896709,19.04013144,133.05,133.01,19.04013144]
[1744870896916,19.04013144,133.05,133.0,19.04013144]
[1744870897299,19.04013144,133.05,133.01,19.04013144]
[1744870898312,19.32445458,133.07,133.03,19.04013144]
[1744870899319,82.8,133.08,133.04,19.04013144]
[1744870899709,82.8,133.14,133.06,37.6897803]
[1744870899896,41.02203144,133.21,133.13,19.04013144]
[1744870900192,7.5075075,133.2,133.17,19.04013144]
[1744870900392,26.27627626,133.2,133.14,19.04013144]
[1744870900618,19.04013144,133.18,133.14,19.04013144]
[1744870902210,7.50919876,133.17,133.13,19.04013144]
[1744870902712,7.50919876,133.17,133.09,19.04013144]
[1744870902713,19.04013144,133.14,133.09,19.04013144]
[1744870902905,19.04013144,133.1,133.06,19.04013144]
[1744870903108,26.0,133.13,133.07,19.04013144]
[1744870903299,26.0,133.13,133.1,19.04013144]
[1744870903821,45.04013144,133.13,133.09,19.04013144]
[1744870904425,7.51201923,133.12,133.09,19.04013144]
[1744870904819,7.51201923,133.12,133.08,19.04013144]
[1744870906421,7.51201923,133.12,133.05,18.64964886]
[1744870906422,26.55215067,133.12,133.07,19.04013144]
[1744870907431,19.04013144,133.09,133.05,19.04013144]
[1744870907630,82.8,133.11,133.06,19.04013144]
[1744870907831,82.8,133.11,133.07,19.04013144]
[1744870908127,82.8,133.11,133.08,19.04013144]
[1744870908423,26.55327944,133.1,133.05,19.04013144]
[1744870908612,19.04013144,133.09,133.04,19.04013144]
[1744870909430,19.04013144,133.08,133.04,19.04013144]
[1744870910009,19.04013144,133.08,133.02,43.1502]
[1744870910209,19.04013144,133.07,133.02,19.04013144]
[1744870910419,26.55610287,133.05,133.01,19.04013144]
[1744870910731,19.04013144,133.04,133.0,19.04013144]
[1744870911030,82.8,133.08,133.03,19.04013144]
[1744870911234,82.8,133.08,133.04,19.04013144]
[1744870911436,101.84013144,133.08,133.04,19.04013144]
[1744870911738,90.31439797,133.08,133.04,19.04013144]
[1744870912536,109.35452941,133.08,133.03,19.04013144]
[1744870912726,19.04013144,133.07,133.03,19.04013144]
[1744870912930,109.35452941,133.08,133.03,19.04013144]
[1744870915738,90.31439797,133.08,133.04,19.04013144]
[1744870915915,90.31439797,133.08,133.05,19.04013144]
[1744870917638,82.8,133.11,133.07,19.04013144]
[1744870917816,7.51089079,133.14,133.1,19.04013144]
[1744870918024,25.14384918,133.17,133.08,26.55395517]
[1744870918025,25.40973144,133.17,133.13,19.04013144]
[1744870918529,25.40973144,133.17,133.12,19.04013144]
[1744870919244,7.50981707,133.16,133.12,19.04013144]
[1744870919439,7.53938411,133.17,133.14,19.04013144]
[1744870919623,7.53938411,133.17,133.13,19.04013144]
[1744870920321,7.53938411,133.17,133.14,19.04013144]
[1744870920630,7.53938411,133.17,133.11,7.51257041]
[1744870920631,0.03,133.17,133.16,19.04013144]
[1744870921541,0.03,133.17,133.16,26.54989413]
[1744870921741,0.03,133.17,133.16,71.19954299]
[1744870921922,0.03,133.24,133.19,26.0]
[1744870922122,0.03,133.24,133.22,19.04013144]
[1744870922543,7.53528435,133.24,133.21,19.04013144]
[1744870922748,0.03,133.24,133.22,19.04013144]
[1744870923127,0.03,133.24,133.21,19.04013144]
[1744870924146,0.03,133.24,133.22,19.04013144]
[1744870925348,0.03,133.24,133.2,19.04013144]
[1744870925939,0.03,133.24,133.23,19.04013144]
[1744870929058,0.03,133.24,133.22,19.04013144]
[1744870929350,0.03,133.24,133.23,63.6897803]
[1744870929654,0.03,133.25,133.24,18.64964886]
[1744870929839,0.03,133.25,133.24,37.6897803]
[1744870931655,0.03,133.25,133.24,45.19503397]
[1744870932959,0.03,133.25,133.24,19.04013144]
[1744870935452,0.03,133.25,133.24,45.19503397]
[1744870936442,0.03,133.25,133.24,19.04013144]
[1744870937267,0.03,133.25,133.24,26.54538511]
[1744870937468,0.03,133.25,133.24,45.19503397]
[1744870938872,0.03,133.25,133.24,19.04013144]
[1744870939259,0.03,133.25,133.23,19.04013144]
[1744870939449,0.03,133.25,133.22,19.04013144]
[1744870940149,0.03,133.25,133.23,19.04013144]
[1744870940345,0.03,133.25,133.24,19.04013144]
[1744870941764,0.03,133.25,133.23,19.04013144]
[1744870941944,0.03,133.25,133.24,19.04013144]
[1744870944565,0.03,133.25,133.24,45.19503397]
[1744870947776,0.03,133.25,133.24,80.05948855]
[1744870948147,0.03,133.25,133.24,60.73503397]
[1744870949078,0.03,133.3,133.28,26.0]
[1744870949262,0.03,133.3,133.29,19.04013144]
[1744870950671,0.03,133.3,133.29,45.19221859]
[1744870950875,0.03,133.3,133.29,19.04013144]
[1744870951774,0.03,133.3,133.28,19.04013144]
[1744870952077,0.03,133.3,133.29,19.04013144]
[1744870954675,0.03,133.3,133.29,26.54256973]
[1744870954880,1.0,133.44,133.36,20.0]
[1744870955072,16.09222347,133.52,133.46,26.0]
[1744870955258,2.5716044,133.52,133.5,11.8432056]
[1744870955459,2.5716044,133.52,133.46,42.36]
[1744870955652,2.5716044,133.52,133.51,11.8432056]
[1744870955856,2.5716044,133.52,133.49,11.8432056]
[1744870956162,2.5716044,133.52,133.46,49.8528349]
[1744870956367,2.5716044,133.52,133.49,11.8432056]
[1744870956580,14.41481,133.52,133.44,26.0]
[1744870956789,11.8432056,133.48,133.43,11.8432056]
[1744870956991,11.8432056,133.49,133.44,11.8432056]
[1744870957169,18.9649473,133.5,133.45,18.9649473]
[1744870957484,44.9649473,133.51,133.46,18.9649473]
[1744870957990,18.9649473,133.5,133.46,18.9649473]
[1744870958858,52.45543982,133.51,133.46,18.9649473]
[1744870959496,18.9649473,133.5,133.46,18.9649473]
[1744870959861,2.5716044,133.52,133.49,18.9649473]
[1744870960066,2.5716044,133.52,133.51,18.9649473]
[1744870960887,2.5716044,133.52,133.49,18.9649473]
[1744870961799,2.5716044,133.52,133.45,7.49344323]
[1744870962005,2.5716044,133.52,133.49,18.9649473]
[1744870962171,2.5716044,133.52,133.44,61.3049473]
[1744870962172,2.5716044,133.52,133.5,18.9649473]
[1744870962374,2.5716044,133.52,133.51,18.9649473]
[1744870962590,2.5716044,133.52,133.5,18.9649473]
[1744870964264,2.5716044,133.52,133.49,18.9649473]
[1744870964602,2.5716044,133.52,133.5,18.9649473]
[1744870965470,2.5716044,133.52,133.51,18.9649473]
[1744870965871,2.5716044,133.52,133.47,7.49227618]
[1744870966073,2.5716044,133.52,133.49,18.9649473]
[1744870966400,2.5716044,133.52,133.47,7.49227618]
[1744870966692,2.5716044,133.52,133.5,18.9649473]
[1744870967072,10.06112984,133.52,133.49,18.9649473]
[1744870968380,29.02607299,133.52,133.48,18.9649473]
[1744870969003,2.5716044,133.52,133.49,18.9649473]
[1744870969193,2.5716044,133.52,133.51,18.9649473]
[1744870969994,2.5716044,133.52,133.48,18.64964886]
[1744870970200,2.5716044,133.52,133.51,18.9649473]
[1744870971802,2.5716044,133.52,133.5,8.13889099]
[1744870971803,2.5716044,133.52,133.5,0.648276]
[1744870972503,29.02612465,133.52,133.5,0.648276]
[1744870972703,18.9649473,133.51,133.5,0.648276]
[1744870973698,26.45502294,133.51,133.5,0.648276]
[1744870974193,29.02611938,133.52,133.5,0.648276]
[1744870974399,10.06117208,133.52,133.5,0.648276]
[1744870975205,2.5716044,133.52,133.5,0.648276]
[1744870975398,2.5716044,133.52,133.5,19.6132233]
[1744870976607,2.5716044,133.52,133.51,18.9649473]
[1744870976983,2.5716044,133.52,133.51,37.61459616]
[1744870977808,2.5716044,133.52,133.51,45.1046718]
[1744870977989,2.5716044,133.52,133.51,18.9649473]
[1744870980404,21.5365517,133.52,133.5,0.648276]
[1744870980593,18.9649473,133.51,133.5,0.648276]
[1744870981277,29.02606637,133.52,133.5,0.648276]
[1744870981709,2.5716044,133.52,133.5,0.648276]
[1744870982089,2.5716044,133.52,133.5,19.6132233]
[1744870983494,10.06112262,133.52,133.5,0.648276]
[1744870983705,18.9649473,133.51,133.5,0.648276]
[1744870984311,109.53934608,133.51,133.5,0.648276]
[1744870984486,128.50429338,133.51,133.5,0.648276]
[1744870984809,147.15394224,133.51,133.5,0.648276]
[1744870985191,128.18899494,133.51,133.5,0.648276]
[1744870986389,18.933972,133.5,133.43,18.9649473]
[1744870986592,18.9649473,133.48,133.43,18.9649473]
[1744870987285,18.9649473,133.47,133.4,26.0]
[1744870987483,18.9649473,133.44,133.39,16.16]
[1744870987809,18.9649473,133.43,133.39,18.9649473]
[1744870988008,18.2754673,133.43,133.39,18.9649473]
[1744870988384,7.49512816,133.42,133.39,18.9649473]
[1744870988579,18.2754673,133.43,133.39,18.9649473]
[1744870988580,25.77022382,133.43,133.39,18.9649473]
[1744870988785,0.28432314,133.44,133.41,18.9649473]
[1744870988987,101.7649473,133.45,133.38,19.0279473]
[1744870988988,82.8,133.45,133.42,18.9649473]
[1744870989399,109.25845257,133.45,133.4,18.9649473]
[1744870989600,19.10710887,133.43,133.39,18.9649473]
[1744870989818,101.90710887,133.43,133.39,18.9649473]
[1744870990312,7.49512816,133.42,133.38,19.0279473]
[1744870990501,7.49512816,133.42,133.39,18.9649473]
[1744870994106,82.8,133.43,133.41,18.9649473]
[1744870994699,90.29463574,133.43,133.4,18.9649473]
[1744870995322,82.8,133.43,133.4,18.9649473]
[1744870995493,82.8,133.43,133.41,18.9649473]
[1744870996018,90.29462649,133.43,133.4,18.9649473]
[1744870998170,82.8,133.43,133.41,18.9649473]
[1744870998609,82.8,133.43,133.42,18.9649473]
[1744870998794,82.8,133.45,133.42,18.9649473]
[1744870998995,90.2934493,133.45,133.42,18.9649473]
[1744871000500,109.2583966,133.45,133.4,18.9649473]
[1744871000825,19.24927044,133.44,133.4,18.9649473]
[1744871001002,90.2934493,133.45,133.41,18.9649473]
[1744871001402,109.2583966,133.45,133.41,18.9649473]
[1744871002440,109.2583966,133.45,133.38,7.56026306]
[1744871002616,18.9649473,133.43,133.38,0.063]
[1744871002815,18.9649473,133.43,133.39,18.9649473]
[1744871004026,7.49512816,133.42,133.39,18.9649473]
[1744871005114,7.49512816,133.42,133.39,11.86321957]
[1744871006343,90.2947658,133.43,133.4,11.86321957]
[1744871006514,82.8,133.43,133.41,11.86321957]
[1744871007032,90.29467824,133.43,133.41,11.86321957]
[1744871007944,90.29467824,133.43,133.4,11.86321957]
[1744871008345,82.8,133.43,133.41,11.86321957]
[1744871008514,82.8,133.43,133.42,11.86321957]
[1744871008830,23.6735153,133.45,133.42,11.86321957]
[1744871010946,23.6735153,133.45,133.41,11.86321957]
[1744871012515,23.6735153,133.45,133.42,11.86321957]
[1744871013946,7.49456643,133.43,133.4,11.86321957]
[1744871020154,82.8,133.44,133.41,11.86321957]
[1744871020341,82.8,133.44,133.42,11.86321957]
[1744871022062,82.8,133.44,133.43,11.86321957]
[1744871022349,82.8,133.44,133.42,11.86321957]
[1744871023959,102.15730074,133.44,133.38,0.063]
[1744871024127,19.35880834,133.42,133.38,0.063]
[1744871024548,19.35880834,133.42,133.38,11.92621957]
[1744871027055,11.86321957,133.4,133.38,0.063]
[1744871027230,7.49558877,133.42,133.39,11.86321957]
[1744871027754,7.49558877,133.42,133.4,11.86321957]
[1744871027923,106.13458051,133.43,133.4,11.86321957]
[1744871028126,82.8,133.46,133.42,11.86321957]
[1744871028430,82.8,133.46,133.44,11.86321957]
[1744871028828,82.8,133.46,133.43,11.86321957]
[1744871029452,0.03,133.49,133.45,11.86321957]
[1744871029653,0.03,133.49,133.42,34.1261]
[1744871029654,0.03,133.49,133.47,11.86321957]
[1744871030156,0.03,133.49,133.46,11.86321957]
[1744871030945,7.52119784,133.49,133.46,11.86321957]
[1744871031453,19.38441741,133.49,133.45,11.86321957]
[1744871031660,7.52119784,133.49,133.46,11.86321957]
[1744871031835,0.03,133.49,133.47,11.86321957]
[1744871032049,0.03,133.49,133.48,11.86321957]
[1744871035669,0.03,133.49,133.46,11.86321957]
[1744871036045,0.03,133.49,133.48,11.86321957]
[1744871038670,0.03,133.49,133.43,44.64964886]
[1744871038965,0.03,133.49,133.45,11.86321957]
[1744871039168,0.03,133.49,133.46,11.86321957]
[1744871039766,7.52119784,133.49,133.46,11.86321957]
[1744871040178,7.52119784,133.49,133.47,11.86321957]
[1744871040392,0.03,133.49,133.48,11.86321957]
[1744871041878,0.03,133.49,133.46,11.86321957]
[1744871042279,0.03,133.49,133.48,11.86321957]
[1744871042882,0.03,133.49,133.47,11.86321957]
[1744871043064,0.03,133.49,133.46,11.86321957]
[1744871043259,11.89321957,133.49,133.45,11.86321957]
[1744871043658,11.86321957,133.48,133.44,11.86321957]
[1744871043859,11.86321957,133.46,133.39,15.25461942]
[1744871044089,11.86321957,133.45,133.41,11.86321957]
[1744871044386,11.86321957,133.46,133.42,11.86321957]
[1744871044779,11.86321957,133.45,133.41,11.86321957]
[1744871045086,11.86321957,133.43,133.38,11.92621957]
[1744871045264,11.86321957,133.42,133.38,11.92621957]
[1744871045975,11.86321957,133.42,133.38,0.063]
[1744871046268,11.86321957,133.4,133.38,0.063]
[1744871046885,11.86321957,133.41,133.38,0.063]
[1744871047269,7.49625187,133.4,133.38,0.063]
[1744871047465,18.933972,133.43,133.38,11.92621957]
[1744871047466,11.86321957,133.42,133.38,11.92621957]
[1744871047671,12.14754271,133.43,133.39,11.86321957]
[1744871047872,7.49474213,133.43,133.39,11.86321957]
[1744871048367,19.3579617,133.43,133.39,11.86321957]
[1744871049800,7.49358967,133.45,133.41,11.86321957]
[1744871050975,19.35680924,133.45,133.41,11.86321957]
[1744871051490,19.3583069,133.43,133.39,11.86321957]
[1744871051987,7.49508733,133.43,133.4,11.86321957]
[1744871053210,12.14754271,133.44,133.4,11.86321957]
[1744871054167,7.49508733,133.43,133.4,11.86321957]
[1744871054896,19.3583069,133.43,133.39,11.86321957]
[1744871055100,7.49508733,133.43,133.4,11.86321957]
[1744871055276,12.00538114,133.41,133.38,0.063]
[1744871055484,12.14754271,133.39,133.38,0.063]
[1744871055799,94.66321957,133.39,133.38,0.063]
[1744871055974,102.16003342,133.39,133.38,0.063]
[1744871056683,102.44435656,133.39,133.38,0.063]
[1744871058480,57.03604005,133.39,133.36,0.063]
[1744871058665,12.14754271,133.37,133.36,0.063]
[1744871059165,30.79719157,133.37,133.36,0.063]
[1744871059369,12.14754271,133.37,133.36,0.063]
[1744871059870,19.64548077,133.37,133.36,0.063]
[1744871061374,38.29512963,133.37,133.36,0.063]
[1744871062591,19.64548077,133.37,133.36,0.063]
[1744871062894,7.49758006,133.38,133.36,0.063]
[1744871063474,7.49758006,133.38,133.36,11.92621957]
[1744871065203,7.49758006,133.38,133.36,0.063]
[1744871065383,7.49758006,133.38,133.36,11.92621957]
[1744871065998,98.62,133.41,133.37,11.86321957]
[1744871066184,110.48321957,133.41,133.37,11.86321957]
[1744871066385,7.49646114,133.4,133.37,11.86321957]
[1744871067285,7.49646114,133.4,133.36,11.92621957]
[1744871067286,19.35968071,133.4,133.36,11.92621957]
[1744871068798,7.49646114,133.4,133.37,11.86321957]
[1744871069805,0.28432314,133.39,133.36,0.063]
[1744871070105,0.28432314,133.39,133.36,11.92621957]
[1744871070886,7.49736545,133.39,133.37,11.86321957]
[1744871071482,7.49736545,133.39,133.36,11.92621957]
[1744871076210,7.78057501,133.4,133.36,11.92621957]
[1744871076386,19.64379458,133.4,133.36,11.92621957]
[1744871078506,19.64379458,133.4,133.36,0.063]
[1744871078710,19.64379458,133.4,133.36,11.92621957]
[1744871083617,19.64379458,133.4,133.38,11.86321957]
[1744871083618,7.49625187,133.4,133.38,11.86321957]
[1744871083916,30.88659219,133.42,133.39,11.86321957]
[1744871083917,90.29560591,133.42,133.39,11.86321957]
[1744871084224,7.49344323,133.45,133.41,11.86321957]
[1744871084525,7.49344323,133.45,133.42,11.86321957]
[1744871084705,7.49344323,133.45,133.41,11.86321957]
[1744871085817,19.3566628,133.45,133.41,11.86321957]
[1744871086630,19.3566628,133.45,133.4,6.1099]
[1744871086921,19.3566628,133.45,133.41,11.86321957]
[1744871088827,7.49344323,133.45,133.41,11.86321957]
[1744871089026,7.49344323,133.45,133.42,11.86321957]
[1744871089320,19.3566628,133.45,133.41,11.86321957]
[1744871092925,7.49344323,133.45,133.42,11.86321957]
[1744871093226,7.49303626,133.46,133.43,11.86321957]
[1744871097834,7.49303626,133.46,133.42,11.86321957]
[1744871098041,11.86321957,133.45,133.4,6.1099]
[1744871098322,11.86321957,133.42,133.38,11.86321957]
[1744871098524,94.66321957,133.45,133.41,11.86321957]
[1744871099126,94.66321957,133.45,133.41,7.59025858]
[1744871099127,90.39025858,133.45,133.41,7.59025858]
[1744871099424,7.49400479,133.44,133.41,7.59025858]
[1744871100310,15.08426337,133.44,133.4,7.59025858]
[1744871101230,7.59025858,133.43,133.39,7.59025858]
[1744871101805,7.49512816,133.42,133.37,6.2161]
[1744871102024,7.49477068,133.43,133.4,7.59025858]
[1744871102340,7.49477068,133.43,133.41,7.59025858]
[1744871103025,7.49477068,133.43,133.4,7.59025858]
[1744871106232,7.49477068,133.43,133.37,13.71400769]
[1744871106233,82.8,133.44,133.42,7.59025858]
[1744871106410,15.58,133.47,133.43,7.59025858]
[1744871106613,15.58,133.47,133.44,7.59025858]
[1744871107028,30.66275044,133.47,133.43,7.59025858]
[1744871107638,7.59025858,133.44,133.38,17.214]
[1744871107829,7.59025858,133.43,133.39,7.59025858]
[1744871108221,7.59025858,133.44,133.4,7.59025858]
[1744871109735,7.59025858,133.44,133.38,17.214]
[1744871109736,90.29364013,133.45,133.42,7.59025858]
[1744871109947,7.49364013,133.45,133.42,7.59025858]
[1744871111339,7.49307967,133.46,133.42,7.59025858]
[1744871111638,23.07253018,133.47,133.44,7.59025858]
[1744871111842,15.58,133.47,133.44,7.59025858]
[1744871112041,0.03,133.49,133.46,7.59025858]
[1744871112340,0.03,133.49,133.48,7.59025858]
[1744871114353,0.03,133.49,133.48,15.08201764]
[1744871114555,0.03,133.51,133.5,46.17864886]
[1744871114727,2.5716044,133.52,133.51,18.64964886]
[1744871115048,2.5716044,133.52,133.51,33.72998308]
[1744871115049,2.5416044,133.52,133.51,33.72998308]
[1744871115246,2.5416044,133.52,133.51,38.2565156]
[1744871115443,0.03,133.54,133.51,38.2565156]
[1744871115642,0.03,133.54,133.53,30.48211682]
[1744871115950,0.03,133.54,133.53,78.49341682]
[1744871116152,0.03,133.54,133.53,78.77773996]
[1744871116326,0.03,133.55,133.54,42.31458478]
[1744871116533,0.03,133.55,133.54,30.48211682]
[1744871118452,0.03,133.55,133.54,11.83246796]
[1744871118657,0.03,133.55,133.52,11.83246796]
[1744871118828,0.03,133.55,133.53,11.83246796]
[1744871119226,0.03,133.55,133.52,11.83246796]
[1744871120247,11.86246796,133.55,133.5,13.36146796]
[1744871120454,7.51783227,133.55,133.51,11.83246796]
[1744871120632,19.35030023,133.55,133.51,11.83246796]
[1744871121856,11.83246796,133.53,133.49,11.83246796]
[1744871122053,11.83246796,133.5,133.45,6.4822]
[1744871122261,11.83246796,133.48,133.44,11.83246796]
[1744871122432,11.83246796,133.5,133.45,11.83246796]
[1744871122630,7.49119784,133.49,133.47,11.83246796]
[1744871123142,7.49076742,133.5,133.47,11.83246796]
[1744871125373,11.83246796,133.49,133.45,11.83246796]
[1744871125652,11.83246796,133.49,133.44,11.83246796]
[1744871125854,11.83246796,133.49,133.45,11.83246796]
[1744871126036,26.21735918,133.5,133.47,11.83246796]
[1744871126245,7.49076742,133.5,133.47,11.83246796]
[1744871126438,7.49076742,133.5,133.49,11.83246796]
[1744871126643,7.49004264,133.52,133.49,11.83246796]
[1744871126859,26.21243163,133.53,133.5,11.83246796]
[1744871127160,26.21243163,133.53,133.49,11.83246796]
[1744871128359,38.04489959,133.53,133.49,11.83246796]
[1744871128754,11.83246796,133.51,133.45,15.54]
[1744871128937,0.14216157,133.52,133.45,15.54]
[1744871128938,11.83246796,133.5,133.45,11.83246796]
[1744871129254,11.83246796,133.49,133.45,11.83246796]
[1744871129754,11.83246796,133.5,133.45,11.83246796]
[1744871130457,7.49119784,133.49,133.45,11.83246796]
[1744871130654,19.3236658,133.49,133.45,11.83246796]
[1744871131763,7.49119784,133.49,133.46,11.83246796]
[1744871131937,19.3236658,133.49,133.44,11.83246796]
[1744871132538,7.49119784,133.49,133.46,11.83246796]
[1744871132732,7.49119784,133.49,133.47,11.83246796]
[1744871133134,30.55795147,133.51,133.44,30.48211682]
[1744871133135,7.49062779,133.51,133.44,30.48211682]
[1744871133327,19.32309575,133.51,133.47,11.83246796]
[1744871134356,11.83246796,133.5,133.46,11.83246796]
[1744871134539,11.83246796,133.48,133.44,11.83246796]
[1744871134947,11.83246796,133.5,133.46,11.83246796]
[1744871135242,11.83246796,133.49,133.45,11.83246796]
[1744871135856,82.8,133.5,133.43,13.46136796]
[1744871136156,94.63246796,133.5,133.45,11.83246796]
[1744871136361,7.49119784,133.49,133.46,11.83246796]
[1744871136662,19.3236658,133.49,133.45,11.83246796]
[1744871137054,11.83246796,133.48,133.44,11.83246796]
[1744871138167,11.83246796,133.46,133.41,33.85466796]
[1744871138341,11.83246796,133.46,133.4,1.5998]
[1744871138342,19.32749499,133.43,133.4,1.5998]
[1744871138545,19.32749499,133.43,133.39,11.83246796]
[1744871139460,11.83246796,133.42,133.38,0.063]
[1744871139832,11.83246796,133.41,133.38,0.063]
[1744871140034,7.49232037,133.47,133.4,37.83246796]
[1744871140354,19.32478833,133.47,133.43,11.83246796]
[1744871140539,19.32478833,133.47,133.42,11.83246796]
[1744871142460,7.49232037,133.47,133.43,11.83246796]
[1744871142765,7.49232037,133.47,133.44,11.83246796]
[1744871143144,7.49232037,133.47,133.44,18.9666782]
[1744871144174,7.49232037,133.47,133.4,39.68694283]
[1744871144175,26.45899857,133.47,133.43,18.9666782]
[1744871144852,7.49232037,133.47,133.43,18.9666782]
[1744871146169,26.45858695,133.48,133.44,18.9666782]